{"text_format":"3","workbook":"xlsx","n_sheets":2,"sheets":["Început","Buget de nuntă"],"read":"whole","date_system":"1900"}

{"sheet":"Început","index":0,"n_rows":7,"n_cols":2,"rows_kept":7}
[null,"DESPRE ACEST ȘABLON"]
[null,"Utilizați acest șablon pentru a vă înregistra cheltuielile reale pentru nuntă pentru diverse articole și a le urmări în comparație cu sumele bugetate."]
[null,"Introduceți cheltuieli pentru Vestimentație, Decorațiuni, Cadouri, Flori, Muzică, Fotografie, Recepție, Papetărie, Transport și articole diverse în tabelele respective."]
[null,"Total cheltuieli estimate și Total cheltuieli reale sunt calculate automat."]
[null,"Notă: "]
[null,"Au fost furnizate instrucțiuni suplimentare în coloana A din foaia de lucru BUGET NUNTĂ Acest text a fost ascuns intenționat. Pentru a elimina textul, selectați coloana A, apoi DELETE. Pentru a reafișa textul, selectați coloana A, apoi schimbați culoarea de font."]
[null,"Pentru a afla mai multe despre tabele, apăsați SHIFT, apoi F10 într-un tabel, selectați opțiunea TABEL, apoi selectați TEXT ALTERNATIV."]

{"sheet":"Buget de nuntă","index":1,"n_rows":93,"n_cols":4,"rows_kept":93,"merged":[[0,1,0,3],[2,1,2,3],[6,1,6,3],[15,1,15,3],[25,1,25,3],[34,1,34,3],[43,1,43,3],[50,1,50,3],[59,1,59,3],[68,1,68,3],[77,1,77,3],[85,1,85,3]]}
[null,"BUGET DE NUNTĂ"]
[]
[null,"TOTAL CHELTUIELI "]
[null,"Articol ","Estimat","Real"]
[null,"Total cheltuieli ",{"$f":"SUM(Îmbrăcăminte[[#Totals],[Estimat]],Decorațiuni[[#Totals],[Estimat]],Cadouri[[#Totals],[Estimat]],Flori[[#Totals],[Estimat]],Muzică[[#Totals],[Estimat]],Fotografie[[#Totals],[Estimat]],Recepție[[#Totals],[Estimat]],PatetărieȘiImprimare[[#Totals],[Estimat]],Transport[[#Totals],[Estimat]],AlteCheltuieli[[#Totals],[Estimat]])","v":0},{"$f":"SUM(Îmbrăcăminte[[#Totals],[Real]],Decorațiuni[[#Totals],[Real]],Cadouri[[#Totals],[Real]],Flori[[#Totals],[Real]],Muzică[[#Totals],[Real]],Fotografie[[#Totals],[Real]],Recepție[[#Totals],[Real]],PatetărieȘiImprimare[[#Totals],[Real]],Transport[[#Totals],[Real]],AlteCheltuieli[[#Totals],[Real]],)","v":0}]
[]
[null,"ÎMBRĂCĂMINTE"]
[null,"Articol ","Estimat","Real"]
[null,"Inel de logodnă"]
[null,"Verighete"]
[null,"Rochia de mireasă"]
[null,"Voal/podoabă pentru cap"]
[null,"Altele:"]
[null,"Total îmbrăcăminte",{"$f":"SUBTOTAL(109,Îmbrăcăminte[Estimat])","v":0},{"$f":"SUBTOTAL(109,Îmbrăcăminte[Real])","v":0}]
[]
[null,"DECORAȚIUNI"]
[null,"Articol ","Estimat","Real"]
[null,"Panglici festive pentru băncile din biserică/alte scaune"]
[null,"Decorațiuni pentru mese (fără flori)"]
[null,"Lumânări"]
[null,"Iluminare"]
[null,"Baloane"]
[null,"Altele:"]
[null,"Total decorațiuni",{"$f":"SUBTOTAL(109,Decorațiuni[Estimat])","v":0},{"$f":"SUBTOTAL(109,Decorațiuni[Real])","v":0}]
[]
[null,"CADOURI"]
[null,"Articol ","Estimat","Real"]
[null,"Participanți"]
[null,"Mireasa și mirele"]
[null,"Părinți"]
[null,"Cititori/alți participanți"]
[null,"Altele:"]
[null,"Total cadouri",{"$f":"SUBTOTAL(109,Cadouri[Estimat])","v":0},{"$f":"SUBTOTAL(109,Cadouri[Real])","v":0}]
[]
[null,"FLORI"]
[null,"Articol ","Estimat","Real"]
[null,"Buchete"]
[null,"Cocarde"]
[null,"Ornamente florale"]
[null,"Ceremonie"]
[null,"Altele:"]
[null,"Total flori",{"$f":"SUBTOTAL(109,Flori[Estimat])","v":0},{"$f":"SUBTOTAL(109,Flori[Real])","v":0}]
[]
[null,"MUZICĂ"]
[null,"Articol ","Estimat","Real"]
[null,"Muzicieni pentru ceremonie"]
[null,"Trupă/DJ pentru recepție"]
[null,"Altele:"]
[null,"Total muzică",{"$f":"SUBTOTAL(109,Muzică[Estimat])","v":0},{"$f":"SUBTOTAL(109,Muzică[Real])","v":0}]
[]
[null,"FOTOGRAFIE"]
[null,"Articol ","Estimat","Real"]
[null,"Îmbrăcăminte de seară"]
[null,"Fotografii instantanee"]
[null,"Imprimări suplimentare"]
[null,"Albume foto"]
[null,"Altele:"]
[null,"Total fotografii",{"$f":"SUBTOTAL(109,Fotografie[Estimat])","v":0},{"$f":"SUBTOTAL(109,Fotografie[Real])","v":0}]
[]
[null,"RECEPȚIE "]
[null,"Articol ","Estimat","Real"]
[null,"Tarife sală/locație"]
[null,"Mese și scaune"]
[null,"Alimente"]
[null,"Articole din material textil"]
[null,"Altele:"]
[null,"Total recepție (fără muzică și decorațiuni)",{"$f":"SUBTOTAL(109,Recepție[Estimat])","v":0},{"$f":"SUBTOTAL(109,Recepție[Real])","v":0}]
[]
[null,"PAPETĂRIE ȘI MATERIALE IMPRIMATE"]
[null,"Articol ","Estimat","Real"]
[null,"Invitații"]
[null,"Anunțuri"]
[null,"Cărți poștale de mulțumire"]
[null,"Papetărie personală"]
[null,"Altele:"]
[null,"Total papetărie/materiale imprimate",{"$f":"SUBTOTAL(109,PatetărieȘiImprimare[Estimat])","v":0},{"$f":"SUBTOTAL(109,PatetărieȘiImprimare[Real])","v":0}]
[]
[null,"TRANSPORT"]
[null,"Articol ","Estimat","Real"]
[null,"Mașini tip limuzină/autobuz"]
[null,"Parcare"]
[null,"Taxiuri"]
[null,"Altele:"]
[null,"Total transport",{"$f":"SUBTOTAL(109,Transport[Estimat])","v":0},{"$f":"SUBTOTAL(109,Transport[Real])","v":0}]
[]
[null,"ALTE CHELTUIELI"]
[null,"Articol ","Estimat","Real"]
[null,"Preot oficiant"]
[null,"Tarife biserică/ceremonie"]
[null,"Coordonator nuntă"]
[null,"Repetiție cină"]
[null,"Altele:"]
[null,"Total alte cheltuieli",{"$f":"SUBTOTAL(109,AlteCheltuieli[Estimat])","v":0},{"$f":"SUBTOTAL(109,AlteCheltuieli[Real])","v":0}]